Workbook

Sheet 汇总表
A1: 汇总表
A2: 序号 | B2: 项目名称 | C2: 采购控制价 （元） | D2: 班组所报价格 （元） | E2: 备注
A3: 1 | B3: 2023年“P”项目 | C3: 1820020.00
A4: 2 | B4: 2024年“A”项目 | C4: 665491.15
A5: 3 | B5: 2023年“S”项目 | C5: 123089.63
A6: 4 | B6: 2023年“H”项目 | C6: 106938.16
A7: 5 | B7: 合计：
A8: 报价单位名称（公章）：
A9: 法人或委托人姓名及电话：
A10: 时间：

Sheet 2023年“P”项目
A1: 2023年“P”项目桩基工程清单及报价表
A2: 序号 | B2: 项目名称 | C2: 项目特征 | D2: 计量 单位 | E2: 工程量 | F2: 金额（元） | J2: 备注
F3: 全费用 单价限价 | G3: 合价 | H3: 班组所报单价 | I3: 合价
A4: 1 | B4: 旋挖钻机钻孔（孔径≤1000mm） | C4: 1.地层情况：土石综合考虑，嵌岩深度满足设计要求，地层情况投标人应综合考虑；现场土质变化不作单价调整； 2.单桩长度、根数：长度结算以收方深度计算； 3.桩截面：小于等于1000mm； 4.成孔方法：旋挖钻机成孔； 5.挖桩土石方：投标人自行踏勘现场综合考虑、废土转运至项目经理部场内指定位置； 6.综合单价含完成该工作所需的人工，材料（含主材、辅材、周转材料），机械费（含辅助机械的进出场费），措施费（安全文明施工费、季节性施工、临时设施、夜间施工、二次搬运等）、规费等所有相关费用；投标人需配合发包人完成桩基检测（小应变、超声波、静载）、并完善相关资料； 7.含工完料清、工人安全防护用品、防暑降温等全部内容，并包含因工期计划必须要的窝工、赶工费用。因不合格造成的二次返工费用由分包单位自行承担。 8.做法：满足设计及相关施工规范要求。 | D4: m | E4: 150.00 | F4: 200.00 | G4: =F4*E4 -> 30000.00
A5: 2 | B5: 旋挖钻机钻孔（孔径＞1000mm） | C5: 1.地层情况：土石综合考虑，嵌岩深度满足设计要求，地层情况投标人应综合考虑；现场土质变化不作单价调整； 2.单桩长度、根数：长度结算以收方深度计算；； 3.桩截面：大于1000mm； 4.成孔方法：旋挖钻机成孔； 5.挖桩土石方：投标人自行踏勘现场综合考虑、废土转运至项目经理部场内指定位置； 6.综合单价含完成该工作所需的人工，材料（含主材、辅材、周转材料），机械费（含辅助机械的进出场费），措施费（安全文明施工费、季节性施工、临时设施、夜间施工、二次搬运等）、规费等所有相关费用；投标人需配合发包人完成桩基检测（小应变、超声波、静载）、并完善相关资料； 7.含工完料清、工人安全防护用品、防暑降温等全部内容，并包含因工期计划必须要的窝工、赶工费用。因不合格造成的二次返工费用由分包单位自行承担。 8.做法：满足设计及相关施工规范要求。 | D5: m3 | E5: 3120.00 | F5: 220.00 | G5: =E5*F5 -> 686400.00
A6: 3 | B6: 成孔灌注桩商品混凝土C30 | C6: 1.混凝土强度等级：C30商品砼，材料甲供 2.砼现场泵送采用的机械种类及方式：投标人自行确定，泵送费用和泵送运距已综合考虑在单价中； 4.混凝土计算规格：按有效桩长乘以桩径按体积计算。投标人应合理控制成控深度，超灌应满足设计及规范要求，超挖及超灌部分混凝土费用由投标人承担，结算时根据收方资料计算扣除； 5.综合单价含完成该工作所需的人工，材料（辅材、周转材料），机械费（辅助机械的进出场费），措施费（安全文明施工费、季节性施工、临时设施、夜间施工、二次搬运等）、规费等所有相关费用；投标人需配合发包人完成桩基检测（小应变、超声波、静载）、并完善相关资料； 6.做法：满足设计及现行施工技术、质量验收规范要求 | D6: m3 | E6: 2500.00 | F6: 65.00 | G6: 162500.00 | J6: 砼甲供
A7: 4 | B7: 成孔灌注桩 商品水下混凝土C30 | C7: 1.混凝土强度等级：C30水下商品砼，材料甲供 2.砼现场泵送采用的机械种类及方式：投标人自行确定，泵送费用和泵送运距已综合考虑在单价中； 4.混凝土计算规格：按有效桩长乘以桩径按体积计算。投标人应合理控制成控深度，超灌应满足设计及规范要求，超挖及超灌部分混凝土费用由投标人承担，结算时根据收方资料计算扣除； 5.综合单价含完成该工作所需的人工，材料（辅材、周转材料），机械费（辅助机械的进出场费），措施费（安全文明施工费、季节性施工、临时设施、夜间施工、二次搬运等）、规费等所有相关费用；投标人需配合发包人完成桩基检测（小应变、超声波、静载）、并完善相关资料； 6.做法：满足设计及现行施工技术、质量验收规范要求 | D7: m3 | E7: 700.00 | F7: 65.00 | G7: 45500.00 | J7: 砼甲供
A8: 5 | B8: 成孔灌注桩 C35商品混凝土 | C8: 1.混凝土强度等级：C35商品砼，材料甲供 2.砼现场泵送采用的机械种类及方式：投标人自行确定，泵送费用和泵送运距已综合考虑在单价中； 4.混凝土计算规格：按有效桩长乘以桩径按体积计算。投标人应合理控制成控深度，超灌应满足设计及规范要求，超挖及超灌部分混凝土费用由投标人承担，结算时根据收方资料计算扣除； 5.综合单价含完成该工作所需的人工，材料（辅材、周转材料），机械费（辅助机械的进出场费），措施费（安全文明施工费、季节性施工、临时设施、夜间施工、二次搬运等）、规费等所有相关费用；投标人需配合发包人完成桩基检测（小应变、超声波、静载）、并完善相关资料； 6.做法：满足设计及现行施工技术、质量验收规范要求 | D8: m3 | E8: 20.00 | F8: 65.00 | G8: 1300.00 | J8: 砼甲供
A9: 6 | B9: 成孔灌注桩 C35水下商品混凝土 | C9: 1.混凝土强度等级：C35水下商品砼，材料甲供 2.砼现场泵送采用的机械种类及方式：投标人自行确定，泵送费用和泵送运距已综合考虑在单价中； 4.混凝土计算规格：按有效桩长乘以桩径按体积计算。投标人应合理控制成控深度，超灌应满足设计及规范要求，超挖及超灌部分混凝土费用由投标人承担，结算时根据收方资料计算扣除； 5.综合单价含完成该工作所需的人工，材料（辅材、周转材料），机械费（辅助机械的进出场费），措施费（安全文明施工费、季节性施工、临时设施、夜间施工、二次搬运等）、规费等所有相关费用；投标人需配合发包人完成桩基检测（小应变、超声波、静载）、并完善相关资料； 6.做法：满足设计及现行施工技术、质量验收规范要求 | D9: m3 | E9: 20.00 | F9: 65.00 | G9: 1300.00 | J9: 砼甲供
A10: 7 | B10: 截（凿）桩头 （桩径≤φ1000mm） | C10: 1.截（凿）桩头截面、高度、强度等级：满足规范，投标人综合考虑 ， 2.桩头有无钢筋：有 3.凿除方式：投标人综合考虑 4.包含截桩头及检测土石方开挖（土石综合考虑），桩头钢筋梳理整形，外弃土转运至项目经理部指定位置，转运距离1km范围内； 5.做法：满足设计及现行施工技术、质量验收规范要求 | D10: 个 | E10: 20.00 | F10: 240.00 | G10: 4800.00
A11: 8 | B11: 截（凿）桩头 （桩径＞φ1000mm） | C11: 1.截（凿）桩头截面、高度、强度等级：满足规范，投标人综合考虑 ， 2.桩头有无钢筋：有 3.凿除方式：投标人综合考虑 4.包含截桩头及检测土石方开挖（土石综合考虑），桩头钢筋梳理整形，外弃土转运至项目经理部指定位置，转运距离1km范围内； 5.做法：满足设计及现行施工技术、质量验收规范要求 | D11: 个 | E11: 85.00 | F11: 300.00 | G11: 25500.00
A12: 9 | B12: 声测管 | C12: 1.材质、规格型号：材质为钢管，规格综合考虑 2.包含声测管安装及检测后灌浆，压浆做法满足设计及相关规范要求 3.做法：满足设计及现行施工技术、质量验收规范要求 4.计算规则：该子项计算规则以长度计算 | D12: m | E12: 9810.00 | F12: 12.00 | G12: 117720.00
A13: 10 | B13: 钢护筒 | C13: 1.地层情况：综合 2.护筒类型、长度：钢护筒，规格、长度、厚度等综合 3.埋设方式：由投标人自行考虑 4.做法：满足设计及现行施工技术、质量验收规范要求 4.计算规则：按实际使用长度计算（孔口护筒已包含在钻孔报价内，不再计量） | D13: m | E13: 1000.00 | F13: 160.00 | G13: 160000.00
A14: 11 | B14: 现浇构件钢筋HPB300直径 φ10以内 制作、安装 | C14: 1.钢筋种类、规格：钢筋HPB300直径 φ10以内 ,钢筋甲供 2.钢筋连接方式：各种连接方式投标人综合考虑在报价中 3.弧形构件钢筋以及桩钢筋笼的吊装费用，由投标人综合考虑，进入综合单价中 4.投标人综合考虑埋设的方式，以及钢筋笼吊装等费用均包括在所报综合单价中不再另行计取； 5.钢筋的复检、送检所需的材料费由投标人自行考虑在投标报价中不再另行计取； 6.包含完成该工作所需的机械费、机械进出场费、材料场内外运输、二次或多次转运费均已包含在单价内。 7.其余做法：满足设计及现行施工技术、质量验收规范要求 | D14: t | E14: 10.00 | F14: 1500.00 | G14: 15000.00 | J14: 钢筋甲供
A15: 12 | B15: 现浇构件钢筋HRB400E直径 ≥φ10制作、安装 | C15: 1.钢筋种类、规格：螺纹钢HRB400E ，钢筋直径≥Φ10 钢筋甲供 2.钢筋连接方式：各种连接方式投标人综合考虑在报价中 3.弧形构件钢筋以及桩钢筋笼的吊装费用，由投标人综合考虑，进入综合单价中 4.投标人综合考虑埋设的方式，以及钢筋笼吊装等费用均包括在所报综合单价中不再另行计取； 5.钢筋的复检、送检所需的材料费由投标人自行考虑在投标报价中不再另行计取； 6.包含完成该工作所需的机械费、机械进出场费、材料场内外运输、二次或多次转运费均已包含在单价内。 7.其余做法：满足设计及现行施工技术、质量验收规范要求 | D15: t | E15: 220.00 | F15: 1500.00 | G15: 330000.00 | J15: 钢筋甲供
A16: 13 | B16: 土石方开挖（临时道路、操作平台等） | C16: 1.土质类别：根据现场情况综合考虑 2.开挖挖深度和方式：结合现场需要，投标人综合考虑，开挖至满足旋挖机和商混车可通行条件 3.土石方转运：就近堆放或转运至项目经理部场内指定位置，包含在投标报价中。 4.做法：投标人应对施工现场及周边条件进行仔细勘察，充分考虑各种因素，满足设计及现行施工技术规范要求，综合报价。 5.按收方工程量结算。 | D16: m3 | E16: 15000.00 | F16: 12.00 | G16: 180000.00
A17: 14 | B17: 旋挖机进出场费 | C17: 1.旋挖机进出场费，型号投标人综合考虑 2.此项费用按实际发生台次计算，但投标人自身原因（机械维修、更换等情况）导致的机械进出场费用不另行计算。 | D17: 台/次 | E17: 3.00 | F17: 20000.00 | G17: 60000.00
A18: 15 | B18: 合计： | G18: =SUM(G4:G17) -> 1820020
A19: 注：1、全费用综合单价，包括人工费、材料费、机械费、水电费、管理费、利润、除文明施工费外的总价措施费、除旋挖机外的大型机械进出场费、甲供材料场内二次/多次转运费，降排水费、规费、销项增值税和附加税、弃土费等费用；以上工程量均为暂估量，结算工程量以现场收方为准，因为量差发生的合同价格调整，合同单价均不予以调整。 2、现场安全环保文明施工管理要求：（1）由公司统一发放印有“兴绿园林”字样和LOGO的安全帽和反光背心，班组按实名制领取，使用完后交回项目部，否则按采购费用扣款，其余参照合同附件中安全环保管理协议执行。（2）现场雾炮机由甲方提供，投标单位需安排人员管理使用，人工费、油费及管理费用综合考虑到投标报价中，不单独计取。（3）防尘网由甲方提供，投标单位安排人员进行覆盖、回收、现场转移等，人工费综合考虑到投标报价中，不单独计取。 3、甲供钢筋下车由投标人负责，项目部已有土建钢筋料场，但钢筋加工棚需投标人与土建班组协调使用，费用综合考虑到投标报价中。 4、施工中用电由投标人采用发电机发电，甲方不提供用水接口，所用临时配电箱、用电线路、开关箱、机具等所有材料、设备及安装费用含在综合单价中。

Sheet 2024年“A”项目
A1: 2024年“A”项目桩基工程清单及报价表
A2: 序号 | B2: 项目名称 | C2: 项目特征 | D2: 计量 单位 | E2: 工程量 | F2: 金额（元） | J2: 备注
F3: 全费用单价限价 | G3: 合价 | H3: 班组所报单价 | I3: 合价
A4: 1 | B4: 旋挖钻机钻孔（孔径＞1000mm） | C4: 1.地层情况：土石综合考虑，嵌岩深度满足设计要求，地层情况投标人应综合考虑；现场土质变化不作单价调整； 2.单桩长度、根数：长度结算以收方深度计算； 3.桩截面：大于1000mm； 4.成孔方法：旋挖钻机成孔； 5.挖桩土石方：投标人自行踏勘现场综合考虑、废土转运至项目经理部场内指定位置； 6.综合单价含完成该工作所需的人工，材料（含主材、辅材、周转材料），机械费（含辅助机械的进出场费），措施费（安全文明施工费、季节性施工、临时设施、夜间施工、二次搬运等）、规费等所有相关费用；投标人需配合发包人完成桩基检测（小应变、超声波、静载）、并完善相关资料； 7.含工完料清、工人安全防护用品、防暑降温等全部内容，并包含因工期计划必须要的窝工、赶工费用。因不合格造成的二次返工费用由分包单位自行承担。 8.做法：满足设计及相关施工规范要求。 | D4: m3 | E4: 1381.93 | F4: 220.00 | G4: =F4*E4 -> 304025.15
A5: 2 | B5: 成孔灌注桩 C35水下商品混凝土 | C5: 1.混凝土强度等级：C35水下商品砼，材料甲供 2.砼现场泵送采用的机械种类及方式：长度结算以收方深度计算； 4.混凝土计算规格：按有效桩长乘以桩径按体积计算。投标人应合理控制成控深度，超灌应满足设计及规范要求，超挖及超灌部分混凝土费用由投标人承担，结算时根据收方资料计算扣除； 5.综合单价含完成该工作所需的人工，材料（辅材、周转材料），机械费（辅助机械的进出场费），措施费（安全文明施工费、季节性施工、临时设施、夜间施工、二次搬运等）、规费等所有相关费用；投标人需配合发包人完成桩基检测（小应变、超声波、静载）、并完善相关资料； 6.做法：满足设计及现行施工技术、质量验收规范要求 | D5: m3 | E5: 1176.00 | F5: 65.00 | G5: =F5*E5 -> 76440.00 | J5: 砼甲供
A6: 3 | B6: 截（凿）桩头 （桩径＞φ1000mm） | C6: 1.截（凿）桩头截面、高度、强度等级：满足规范，投标人综合考虑 ， 2.桩头有无钢筋：有 3.凿除方式：投标人综合考虑 4.包含截桩头及检测土石方开挖（土石综合考虑），桩头钢筋梳理整形，外弃土转运至项目经理部指定位置，转运距离1km范围内； 5.做法：满足设计及现行施工技术、质量验收规范要求 | D6: 个 | E6: 38.00 | F6: 300.00 | G6: 11400.00
A7: 4 | B7: 声测管 | C7: 1.材质、规格型号：材质为钢管，规格综合考虑 2.包含声测管安装及检测后灌浆，压浆做法满足设计及相关规范要求 3.做法：满足设计及现行施工技术、质量验收规范要求 4.计算规则：该子项计算规则以长度计算 | D7: m | E7: 1861.50 | F7: 12.00 | G7: 22338.00
A8: 5 | B8: 钢护筒 | C8: 1.地层情况：综合 2.护筒类型、长度：钢护筒，规格、长度、厚度等综合 3.埋设方式：由投标人自行考虑 4.做法：满足设计及现行施工技术、质量验收规范要求 4.计算规则：按实际使用长度计算（孔口护筒已包含在钻孔报价内，不再计量） | D8: m | E8: =38*5 -> 190.00 | F8: 160.00 | G8: 30400.00
A9: 6 | B9: 现浇构件钢筋HPB300直径 φ10以内 制作、安装 | C9: 1.钢筋种类、规格：钢筋HPB300直径 φ10以内 ,钢筋甲供 2.钢筋连接方式：各种连接方式投标人综合考虑在报价中 3.弧形构件钢筋以及桩钢筋笼的吊装费用，由投标人综合考虑，进入综合单价中 4.投标人综合考虑埋设的方式，以及钢筋笼吊装等费用均包括在所报综合单价中不再另行计取； 5.钢筋的复检、送检所需的材料费由投标人自行考虑在投标报价中不再另行计取； 6.包含完成该工作所需的机械费、机械进出场费、材料场内外运输、二次或多次转运费均已包含在单价内。 7.其余做法：满足设计及现行施工技术、质量验收规范要求 | D9: t | E9: 16.31 | F9: 1200.00 | G9: 19572.00 | J9: 钢筋甲供
A10: 7 | B10: 现浇构件钢筋HRB400E直径 ≥φ10制作、安装 | C10: 1.钢筋种类、规格：螺纹钢HRB400E ，钢筋直径≥Φ10 钢筋甲供 2.钢筋连接方式：各种连接方式投标人综合考虑在报价中 3.弧形构件钢筋以及桩钢筋笼的吊装费用，由投标人综合考虑，进入综合单价中 4.投标人综合考虑埋设的方式，以及钢筋笼吊装等费用均包括在所报综合单价中不再另行计取； 5.钢筋的复检、送检所需的材料费由投标人自行考虑在投标报价中不再另行计取； 6.包含完成该工作所需的机械费、机械进出场费、材料场内外运输、二次或多次转运费均已包含在单价内。 7.其余做法：满足设计及现行施工技术、质量验收规范要求 | D10: t | E10: 130.68 | F10: 1200.00 | G10: 156816.00 | J10: 钢筋甲供
A11: 8 | B11: 旋挖机进出场费 | C11: 1.旋挖机进出场费，型号投标人综合考虑 2.此项费用按实际发生台次计算，但投标人自身原因（机械维修、更换等情况）导致的机械进出场费用不另行计算。 | D11: 台/次 | E11: 2.00 | F11: 20000.00 | G11: 40000.00
A12: 9 | B12: 钢筋加工棚搭设 | C12: 1.钢筋棚尺寸：长12000mmx宽6000mmx高3000mm，(立柱高3m，柱距4m)。 2.材料：甲供。 3.钢筋加工棚做法：详附图（场地硬化由甲方负责完成后移交）。 4.其余做法：满足设计及现行施工技术、质量验收规范要求 | D12: 项 | E12: 1.00 | F12: 4500.00 | G12: 4500.00
A13: 10 | B13: 合计： | G13: =SUM(G4:G12) -> 665,491.15
A14: 注：1、全费用综合单价，包括人工费、材料费、机械费、水电费、管理费、利润、除文明施工费外的总价措施费、除旋挖机外的大型机械进出场费、甲供材料场内二次/多次转运费，降排水费、规费、销项增值税和附加税、弃土费等费用；以上工程量均为暂估量，结算工程量以现场收方为准，因为量差发生的合同价格调整，合同单价均不予以调整。 2、现场安全环保文明施工管理要求：（1）由公司统一发放印有“兴绿园林”字样和LOGO的安全帽和反光背心，班组按实名制领取，使用完后交回项目部，否则按采购费用扣款，其余参照合同附件中安全环保管理协议执行。（2）现场雾炮机由甲方提供，投标单位需安排人员管理使用，人工费、油费及管理费用综合考虑到投标报价中，不单独计取。（3）防尘网由甲方提供，投标单位安排人员进行覆盖、回收、现场转移等，人工费综合考虑到投标报价中，不单独计取。 3、甲供钢筋下车由投标人负责，临时道路由投标人自行考虑施工，钢筋料场甲方提供，费用综合考虑到投标报价中。 4、施工中甲方不保证提供水电接口，投标人自行考虑，所用临时配电箱、用电线路、开关箱、机具等所有材料、设备及安装费用含在综合单价中。

Sheet 2023年“S”项目
A1: 2023年“S”项目桩基工程清单及报价表
A2: 序号 | B2: 项目名称 | C2: 项目特征 | D2: 计量 单位 | E2: 工程量 | F2: 金额（元） | J2: 备注
F3: 全费用单价限价 | G3: 合价 | H3: 班组所报单价 | I3: 合价
A4: 1 | B4: 旋挖钻机钻孔（孔径≤1000mm） | C4: 1.地层情况：土石综合考虑，嵌岩深度满足设计要求，地层情况投标人应综合考虑；现场土质变化不作单价调整； 2.单桩长度、根数：长度结算以收方深度计算； 3.桩截面：小于等于1000mm； 4.成孔方法：旋挖钻机成孔； 5.挖桩土石方：投标人自行踏勘现场综合考虑、废土转运至项目经理部场内指定位置； 6.综合单价含完成该工作所需的人工，材料（含主材、辅材、周转材料），机械费（含辅助机械的进出场费），措施费（安全文明施工费、季节性施工、临时设施、夜间施工、二次搬运等）、规费等所有相关费用；投标人需配合发包人完成桩基检测（小应变、超声波、静载）、并完善相关资料； 7.含工完料清、工人安全防护用品、防暑降温等全部内容，并包含因工期计划必须要的窝工、赶工费用。因不合格造成的二次返工费用由分包单位自行承担。 8.做法：满足设计及相关施工规范要求。 | D4: m | E4: =38*6 -> 228.00 | F4: 200.00 | G4: =E4*F4 -> 45600.00
A5: 2 | B5: 成孔灌注桩商品混凝土C30 | C5: 1.混凝土强度等级：C30商品砼，材料甲供 2.砼现场泵送采用的机械种类及方式：投标人自行确定，泵送费用和泵送运距已综合考虑在单价中； 4.混凝土计算规格：按有效桩长乘以桩径按体积计算。投标人应合理控制成控深度，超灌应满足设计及规范要求，超挖及超灌部分混凝土费用由投标人承担，结算时根据收方资料计算扣除； 5.综合单价含完成该工作所需的人工，材料（辅材、周转材料），机械费（辅助机械的进出场费），措施费（安全文明施工费、季节性施工、临时设施、夜间施工、二次搬运等）、规费等所有相关费用；投标人需配合发包人完成桩基检测（小应变、超声波、静载）、并完善相关资料； 6.做法：满足设计及现行施工技术、质量验收规范要求 | D5: m3 | E5: 114.55 | F5: 65.00 | G5: 7445.75 | J5: 砼甲供
A6: 3 | B6: 截（凿）桩头 （桩径≤φ1000mm） | C6: 1.截（凿）桩头截面、高度、强度等级：满足规范，投标人综合考虑 ， 2.桩头有无钢筋：有 3.凿除方式：投标人综合考虑 4.包含截桩头及检测土石方开挖（土石综合考虑），桩头钢筋梳理整形，外弃土转运至项目经理部指定位置，转运距离1km范围内； 5.做法：满足设计及现行施工技术、质量验收规范要求 | D6: 个 | E6: 38.00 | F6: 240.00 | G6: 9120.00
A7: 4 | B7: 声测管 | C7: 1.材质、规格型号：材质为钢管，规格综合考虑 2.包含声测管安装及检测后灌浆，压浆做法满足设计及相关规范要求 3.做法：满足设计及现行施工技术、质量验收规范要求 4.计算规则：该子项计算规则以长度计算 | D7: m | E7: =2*6*38 -> 456.00 | F7: 12.00 | G7: 5472.00
A8: 5 | B8: 钢护筒 | C8: 1.地层情况：综合 2.护筒类型、长度：钢护筒，规格、长度、厚度等综合 3.埋设方式：由投标人自行考虑 4.做法：满足设计及现行施工技术、质量验收规范要求 4.计算规则：按实际使用长度计算（孔口护筒已包含在钻孔报价内，不再计量） | D8: m | E8: 160.00 | F8: 160.00 | G8: 25600.00
A9: 6 | B9: 现浇构件钢筋HPB300直径 φ10以内 制作、安装 | C9: 1.钢筋种类、规格：钢筋HPB300直径 φ10以内 ,钢筋甲供 2.钢筋连接方式：各种连接方式投标人综合考虑在报价中 3.弧形构件钢筋以及桩钢筋笼的吊装费用，由投标人综合考虑，进入综合单价中 4.投标人综合考虑埋设的方式，以及钢筋笼吊装等费用均包括在所报综合单价中不再另行计取； 5.钢筋的复检、送检所需的材料费由投标人自行考虑在投标报价中不再另行计取； 6.包含完成该工作所需的机械费、机械进出场费、材料场内外运输、二次或多次转运费均已包含在单价内。 7.其余做法：满足设计及现行施工技术、质量验收规范要求 | D9: t | E9: =1764.65/1000 -> 1.76 | F9: 1350.00 | G9: 2382.28 | J9: 钢筋甲供
A10: 7 | B10: 现浇构件钢筋HRB400E直径 ≥φ10制作、安装 | C10: 1.钢筋种类、规格：螺纹钢HRB400E ，钢筋直径≥Φ10 钢筋甲供 2.钢筋连接方式：各种连接方式投标人综合考虑在报价中 3.弧形构件钢筋以及桩钢筋笼的吊装费用，由投标人综合考虑，进入综合单价中 4.投标人综合考虑埋设的方式，以及钢筋笼吊装等费用均包括在所报综合单价中不再另行计取； 5.钢筋的复检、送检所需的材料费由投标人自行考虑在投标报价中不再另行计取； 6.包含完成该工作所需的机械费、机械进出场费、材料场内外运输、二次或多次转运费均已包含在单价内。 7.其余做法：满足设计及现行施工技术、质量验收规范要求 | D10: t | E10: =(350.39+5182.65)/1000 -> 5.53 | F10: 1350.00 | G10: 7469.60 | J10: 钢筋甲供
A11: 8 | B11: 旋挖机进出场费 | C11: 1.旋挖机进出场费，型号投标人综合考虑 2.此项费用按实际发生台次计算，但投标人自身原因（机械维修、更换等情况）导致的机械进出场费用不另行计算。 | D11: 台/次 | E11: 1.00 | F11: 20000.00 | G11: 20000.00
A12: 9 | B12: 合计： | G12: =SUM(G4:G11) -> 123,089.63
A13: 注：1、全费用综合单价，包括人工费、材料费、机械费、水电费、管理费、利润、除文明施工费外的总价措施费、除旋挖机外的大型机械进出场费、甲供材料场内二次/多次转运费，降排水费、规费、销项增值税和附加税、弃土费等费用；以上工程量均为暂估量，结算工程量以现场收方为准，因为量差发生的合同价格调整，合同单价均不予以调整。 2、现场安全环保文明施工管理要求：（1）由公司统一发放印有“兴绿园林”字样和LOGO的安全帽和反光背心，班组按实名制领取，使用完后交回项目部，否则按采购费用扣款，其余参照合同附件中安全环保管理协议执行。（2）现场雾炮机由甲方提供，投标单位需安排人员管理使用，人工费、油费及管理费用综合考虑到投标报价中，不单独计取。（3）防尘网由甲方提供，投标单位安排人员进行覆盖、回收、现场转移等，人工费综合考虑到投标报价中，不单独计取。 3、甲供钢筋下车由投标人负责，临时道路由投标人自行考虑施工，甲方不提供钢筋料场及加工区，费用综合考虑到投标报价中。 4、施工中甲方仅提供水电接口，所用临时配电箱、用电线路、开关箱、机具等所有材料、设备及安装费用含在综合单价中。

Sheet 2023年“H”项目
A1: 2023年“H”项目桩基工程清单及报价表
A2: 序号 | B2: 项目名称 | C2: 项目特征 | D2: 计量 单位 | E2: 工程量 | F2: 金额（元） | J2: 备注
F3: 全费用单价限价 | G3: 合价 | H3: 班组所报单价 | I3: 合价
A4: 1 | B4: 旋挖钻机钻孔（孔径＞1000mm） | C4: 1.地层情况：土石综合考虑，嵌岩深度满足设计要求，地层情况投标人应综合考虑；现场土质变化不作单价调整； 2.单桩长度、根数：长度结算以收方深度计算； 3.桩截面：大于1000mm； 4.成孔方法：旋挖钻机成孔； 5.挖桩土石方：投标人自行踏勘现场综合考虑、废土转运至项目经理部场内指定位置； 6.综合单价含完成该工作所需的人工，材料（含主材、辅材、周转材料），机械费（含辅助机械的进出场费），措施费（安全文明施工费、季节性施工、临时设施、夜间施工、二次搬运等）、规费等所有相关费用；投标人需配合发包人完成桩基检测（小应变、超声波、静载）、并完善相关资料； 7.含工完料清、工人安全防护用品、防暑降温等全部内容，并包含因工期计划必须要的窝工、赶工费用。因不合格造成的二次返工费用由分包单位自行承担。 8.做法：满足设计及相关施工规范要求。 | D4: m3 | E4: 178.00 | F4: 220.00 | G4: =F4*E4 -> 39160.00
A5: 2 | B5: 成孔灌注桩 C35水下商品混凝土 | C5: 1.混凝土强度等级：C35水下商品砼，材料甲供 2.砼现场泵送采用的机械种类及方式：投标人自行确定，泵送费用和泵送运距已综合考虑在单价中； 4.混凝土计算规格：按有效桩长乘以桩径按体积计算。投标人应合理控制成控深度，超灌应满足设计及规范要求，超挖及超灌部分混凝土费用由投标人承担，结算时根据收方资料计算扣除； 5.综合单价含完成该工作所需的人工，材料（辅材、周转材料），机械费（辅助机械的进出场费），措施费（安全文明施工费、季节性施工、临时设施、夜间施工、二次搬运等）、规费等所有相关费用；投标人需配合发包人完成桩基检测（小应变、超声波、静载）、并完善相关资料； 6.做法：满足设计及现行施工技术、质量验收规范要求 | D5: m3 | E5: 178.00 | F5: 65.00 | G5: =F5*E5 -> 11570.00 | J5: 砼甲供
A6: 3 | B6: 截（凿）桩头 （桩径＞φ1000mm） | C6: 1.截（凿）桩头截面、高度、强度等级：满足规范，投标人综合考虑 ， 2.桩头有无钢筋：有 3.凿除方式：投标人综合考虑 4.包含截桩头及检测土石方开挖（土石综合考虑），桩头钢筋梳理整形，外弃土转运至项目经理部指定位置，转运距离1km范围内； 5.做法：满足设计及现行施工技术、质量验收规范要求 | D6: 个 | E6: 10.00 | F6: 300.00 | G6: 3000.00
A7: 4 | B7: 声测管 | C7: 1.材质、规格型号：材质为钢管，规格综合考虑 2.包含声测管安装及检测后灌浆，压浆做法满足设计及相关规范要求 3.做法：满足设计及现行施工技术、质量验收规范要求 4.计算规则：该子项计算规则以长度计算 | D7: m | E7: 453 | F7: 12.00 | G7: 5436.00
A8: 5 | B8: 钢护筒 | C8: 1.地层情况：综合 2.护筒类型、长度：钢护筒，规格、长度、厚度等综合 3.埋设方式：由投标人自行考虑 4.做法：满足设计及现行施工技术、质量验收规范要求 4.计算规则：按实际使用长度计算（孔口护筒已包含在钻孔报价内，不再计量） | D8: m | E8: 2.000 | F8: 160.00 | G8: 320.00
A9: 6 | B9: 现浇构件钢筋HPB300直径 φ10以内 制作、安装 | C9: 1.钢筋种类、规格：钢筋HPB300直径 φ10以内 ,钢筋甲供 2.钢筋连接方式：各种连接方式投标人综合考虑在报价中 3.弧形构件钢筋以及桩钢筋笼的吊装费用，由投标人综合考虑，进入综合单价中 4.投标人综合考虑埋设的方式，以及钢筋笼吊装等费用均包括在所报综合单价中不再另行计取； 5.钢筋的复检、送检所需的材料费由投标人自行考虑在投标报价中不再另行计取； 6.包含完成该工作所需的机械费、机械进出场费、材料场内外运输、二次或多次转运费均已包含在单价内。 7.其余做法：满足设计及现行施工技术、质量验收规范要求 | D9: t | E9: 20.877 | F9: 1200.00 | G9: 25052.16 | J9: 钢筋甲供
A10: 7 | B10: 现浇构件钢筋HRB400E直径 ≥φ10制作、安装 | C10: 1.钢筋种类、规格：螺纹钢HRB400E ，钢筋直径≥Φ10 钢筋甲供 2.钢筋连接方式：各种连接方式投标人综合考虑在报价中 3.弧形构件钢筋以及桩钢筋笼的吊装费用，由投标人综合考虑，进入综合单价中 4.投标人综合考虑埋设的方式，以及钢筋笼吊装等费用均包括在所报综合单价中不再另行计取； 5.钢筋的复检、送检所需的材料费由投标人自行考虑在投标报价中不再另行计取； 6.包含完成该工作所需的机械费、机械进出场费、材料场内外运输、二次或多次转运费均已包含在单价内。 7.其余做法：满足设计及现行施工技术、质量验收规范要求 | D10: t | E10: 2.000 | F10: 1200.00 | G10: 2400.00 | J10: 钢筋甲供
A11: 8 | B11: 旋挖机进出场费 | C11: 1.旋挖机进出场费，型号投标人综合考虑 2.此项费用按实际发生台次计算，但投标人自身原因（机械维修、更换等情况）导致的机械进出场费用不另行计算。 | D11: 台/次 | E11: 1.000 | F11: 20000.00 | G11: 20000.00
A12: 9 | B12: 合计： | G12: =SUM(G4:G11) -> 106,938.16
A13: 注：1、全费用综合单价，包括人工费、材料费、机械费、水电费、管理费、利润、除文明施工费外的总价措施费、除旋挖机外的大型机械进出场费、甲供材料场内二次/多次转运费，降排水费、规费、销项增值税和附加税、弃土费等费用；以上工程量均为暂估量，结算工程量以现场收方为准，因为量差发生的合同价格调整，合同单价均不予以调整。 2、现场安全环保文明施工管理要求：（1）由公司统一发放印有“兴绿园林”字样和LOGO的安全帽和反光背心，班组按实名制领取，使用完后交回项目部，否则按采购费用扣款，其余参照合同附件中安全环保管理协议执行。（2）现场雾炮机由甲方提供，投标单位需安排人员管理使用，人工费、油费及管理费用综合考虑到投标报价中，不单独计取。（3）防尘网由甲方提供，投标单位安排人员进行覆盖、回收、现场转移等，人工费综合考虑到投标报价中，不单独计取。 3、甲供钢筋下车由投标人负责，甲方提供钢筋料场及加工区。 4、施工中甲方仅提供水电接口，所用临时配电箱、用电线路、开关箱、机具等所有材料、设备及安装费用含在综合单价中。
